bitfinex/quotes_SOLUSD_20241222
["timestamp","ask_amount","ask_price","bid_price","bid_amount"]
[1734846663799,0.6962736,180.04,180.02,23.776884]
[1734846664007,0.6962736,180.04,179.97,30.57302545]
[1734846664305,0.6962736,180.04,179.96,30.57302545]
[1734846664679,0.6962736,180.04,179.98,54.34990945]
[1734846665004,0.6962736,180.04,179.96,30.57302545]
[1734846665188,0.6962736,180.04,179.97,23.776884]
[1734846665395,0.6962736,180.04,179.97,54.34990945]
[1734846665801,0.6962736,180.04,179.98,30.57302545]
[1734846666800,0.6962736,180.04,179.97,54.34990945]
[1734846667002,0.6962736,180.04,179.98,30.57302545]
[1734846667420,0.6962736,180.04,179.99,23.776884]
[1734846667621,0.6962736,180.04,179.99,54.34990945]
[1734846669131,0.6962736,180.04,180.01,23.776884]
[1734846669325,0.6962736,180.04,180.01,54.34990945]
[1734846669899,0.6962736,180.04,180.02,30.57302545]
[1734846670124,0.6962736,180.04,180.03,23.776884]
[1734846670319,0.6962736,180.04,180.03,54.34990945]
[1734846671220,0.6962736,180.04,180.03,54.47539945]
[1734846671928,7.36e-05,180.04,180.03,56.09049945]
[1734846672626,6.3119,180.19,180.07,43.776884]
[1734846672805,6.3119,180.19,180.12,30.57302545]
[1734846673627,6.3119,180.19,180.04,6.5039]
[1734846673840,1.04058857,180.18,180.0,13.8884]
[1734846674133,1.04058857,180.18,180.05,30.57302545]
[1734846674434,6.3119,180.19,180.12,30.57302545]
[1734846674632,6.3119,180.19,180.13,30.57302545]
[1734846675209,0.6962736,180.22,180.15,54.34990945]
[1734846676538,0.6962736,180.22,180.12,43.776884]
[1734846676716,21.04054679,180.21,180.09,30.57302545]
[1734846676918,21.04054679,180.21,180.08,30.57302545]
[1734846678244,0.6962736,180.22,180.14,23.776884]
[1734846678541,0.6962736,180.22,180.09,30.57302545]
[1734846678542,0.6962736,180.22,180.15,54.34990945]
[1734846679247,0.6962736,180.22,180.18,30.57302545]
[1734846679539,0.6962736,180.22,180.21,30.57302545]
[1734846679721,0.6962736,180.22,180.21,54.34990945]
[1734846680734,0.6962736,180.22,180.2,23.776884]
[1734846680957,0.6962736,180.22,180.16,43.776884]
[1734846681149,0.6962736,180.22,180.16,20.0]
[1734846681320,0.6962736,180.22,180.17,23.776884]
[1734846683421,1.04030905,180.27,180.16,54.34990945]
[1734846683621,1.04018705,180.26,180.16,54.34990945]
[1734846683822,1.04018705,180.26,180.16,23.776884]
[1734846684726,2.42700606,180.28,180.16,23.776884]
[1734846684932,1.3867,180.28,180.16,54.34990945]
[1734846685131,1.04026743,180.27,180.16,23.776884]
[1734846686338,1.04026743,180.27,180.1,4.1377248]
[1734846686339,1.3868,180.26,180.1,32.79378345]
[1734846686552,20.0,180.21,180.09,30.57302545]
[1734846687258,1.04056415,180.23,180.12,30.57302545]
[1734846687462,6.6279,180.24,180.15,30.57302545]
[1734846688253,1.04031967,180.23,180.12,50.57302545]
[1734846688551,6.6279,180.24,180.14,23.776884]
[1734846689049,1.04032892,180.23,180.14,23.776884]
[1734846689227,1.04032892,180.23,180.13,23.776884]
[1734846689626,1.04032892,180.23,180.13,30.57302545]
[1734846689826,6.6279,180.24,180.14,23.776884]
[1734846690031,1.04044375,180.23,180.14,23.776884]
[1734846691148,6.6279,180.24,180.14,54.34990945]
[1734846691339,6.6279,180.28,180.21,23.776884]
[1734846691532,6.6279,180.28,180.2,23.776884]
[1734846691736,6.6279,180.28,180.18,54.34990945]
[1734846692028,1.5813,180.31,180.22,30.57302545]
[1734846692235,6.6279,180.33,180.24,23.776884]
[1734846692650,6.6279,180.33,180.23,23.776884]
[1734846693358,20.0,180.3,180.23,23.776884]
[1734846693938,1.0399856,180.29,180.17,50.57302545]
[1734846694346,1.0399856,180.29,180.18,23.776884]
[1734846695674,1.3867,180.28,180.15,30.57302545]
[1734846695836,1.04036114,180.27,180.14,30.57302545]
[1734846697347,1.04036114,180.27,180.15,54.34990945]
[1734846697760,2.42716438,180.26,180.15,54.34990945]
[1734846699171,6.3214,180.25,180.13,30.57302545]
[1734846699334,20.0,180.22,180.12,30.57302545]
[1734846699855,20.0,180.22,180.13,30.57302545]
[1734846700157,1.04050912,180.24,180.13,30.57302545]
[1734846700736,1.04050912,180.24,180.14,23.776884]
[1734846700936,2.42750912,180.24,180.14,23.776884]
[1734846702354,20.0,180.22,180.14,23.776884]
[1734846702753,20.0,180.22,180.08,8.2294]
[1734846702754,20.0,180.22,180.13,23.776884]
[1734846703859,1.04050343,180.21,180.08,30.57302545]
[1734846704158,1.04050343,180.21,180.06,30.57302545]
[1734846704358,1.04050343,180.21,180.05,30.57302545]
[1734846704536,20.0,180.17,180.04,30.57302545]
[1734846704745,20.0,180.17,180.09,30.57302545]
[1734846705072,6.3214,180.2,180.13,30.57302545]
[1734846705446,6.3214,180.2,180.12,30.57302545]
[1734846705846,6.3214,180.2,180.13,54.34990945]
[1734846706673,6.3214,180.2,180.13,23.776884]
[1734846706857,6.3214,180.2,180.13,54.34990945]
[1734846707062,7.8887,180.25,180.17,23.776884]
[1734846707769,7.8887,180.25,180.16,23.776884]
[1734846707975,7.8887,180.25,180.16,54.34990945]
[1734846708176,7.8887,180.25,180.16,23.776884]
[1734846708678,7.8887,180.25,180.16,54.34990945]
[1734846708864,1.90091315,180.3,180.16,54.34990945]
[1734846708865,6.3214,180.29,180.2,54.34990945]
[1734846709070,6.3214,180.29,180.19,30.57302545]
[1734846709270,6.3214,180.29,180.2,23.776884]
[1734846709778,1.04010425,180.28,180.2,23.776884]
[1734846710475,20.0,180.26,180.2,23.776884]
[1734846714176,20.0,180.26,180.15,30.57302545]
[1734846714361,1.04021397,180.25,180.13,32.18922545]
[1734846715001,1.04021397,180.25,180.14,30.57302545]
[1734846715457,1.04021397,180.25,180.13,1.6162]
[1734846715656,21.3869,180.26,180.17,54.34990945]
[1734846715999,21.3869,180.26,180.18,30.57302545]
[1734846716282,20.0,180.26,180.19,23.776884]
[1734846717197,1.04020881,180.28,180.19,23.776884]
[1734846717390,7.708,180.29,180.19,54.34990945]
[1734846718585,7.708,180.29,180.2,30.57302545]
[1734846718785,7.708,180.29,180.21,23.776884]
[1734846719081,6.1121,180.33,180.24,23.776884]
[1734846719279,7.1520135,180.33,180.24,23.776884]
[1734846719583,6.1121,180.33,180.25,30.57302545]
[1734846719790,6.1121,180.33,180.26,23.776884]
[1734846719995,6.1121,180.37,180.28,54.34990945]
[1734846720307,6.1121,180.37,180.29,23.776884]
[1734846720972,6.1121,180.37,180.31,30.57302545]
[1734846721179,7.6934,180.42,180.33,23.776884]
[1734846721388,7.6934,180.42,180.33,54.34990945]
[1734846721580,7.6934,180.42,180.33,23.776884]
[1734846723590,7.6934,180.42,180.33,54.34990945]
[1734846723892,7.6934,180.42,180.34,30.57302545]
[1734846724094,7.6934,180.42,180.35,23.776884]
[1734846725370,1.0392566,180.41,180.29,30.57302545]
[1734846725791,1.0392566,180.41,180.3,30.57302545]
[1734846726495,20.0,180.39,180.31,23.776884]
[1734846727694,20.0,180.39,180.26,30.57302545]
[1734846727994,2.42540397,180.38,180.23,32.13592545]
[1734846728298,22.42540397,180.38,180.23,32.13592545]
[1734846728807,22.42540397,180.38,180.24,30.57302545]
[1734846729092,22.42540397,180.38,180.25,30.57302545]
[1734846729286,1.3859,180.38,180.28,30.57302545]
[1734846729770,2.42544579,180.38,180.28,23.776884]
[1734846730173,1.3859,180.38,180.28,23.776884]
[1734846730401,1.03956819,180.37,180.28,23.776884]
[1734846730694,1.03956819,180.37,180.24,30.57302545]
[1734846731397,1.3861,180.36,180.24,30.57302545]
[1734846731569,1.3861,180.36,180.23,1.5629]
[1734846731570,1.03987632,180.35,180.23,30.57302545]
[1734846731887,6.6616,180.34,180.22,30.57302545]
[1734846732085,1.03990719,180.33,180.23,30.57302545]
[1734846732291,7.70146107,180.34,180.23,30.57302545]
[1734846732474,7.70146107,180.34,180.22,30.57302545]
[1734846732673,7.70146107,180.34,180.23,23.776884]
[1734846733098,1.5813,180.33,180.22,23.776884]
[1734846733296,2.62117833,180.33,180.22,23.776884]
[1734846733489,1.5813,180.33,180.25,54.34990945]
[1734846733704,6.6616,180.34,180.27,54.34990945]
[1734846733906,6.6616,180.34,180.27,30.57302545]
[1734846734082,6.6616,180.34,180.28,23.776884]
[1734846734718,1.5813,180.37,180.27,23.776884]
[1734846735225,0.10139749,180.28,180.27,23.776884]
[1734846735917,0.10139749,180.28,180.21,30.57302545]
[1734846736220,0.10139749,180.28,180.2,30.57302545]
[1734846736601,0.10139749,180.28,180.19,1.6216]
[1734846736808,0.10139749,180.28,180.22,30.57302545]
[1734846737209,0.10139749,180.28,180.23,23.776884]
[1734846737610,0.10139749,180.28,180.2,30.57302545]
[1734846738217,0.10139749,180.28,180.22,30.57302545]
[1734846739226,0.10139749,180.28,180.19,23.776884]
[1734846739523,21.5813,180.27,180.15,32.22602545]
[1734846739821,1.04032171,180.26,180.15,30.57302545]
[1734846740196,1.04032171,180.26,180.12,13.8794]
[1734846740197,21.5813,180.27,180.18,30.57302545]
[1734846740706,0.10139749,180.28,180.19,54.34990945]
[1734846740932,0.10139749,180.28,180.23,30.57302545]
[1734846741232,0.10139749,180.28,180.25,23.776884]
[1734846741629,0.10139749,180.28,180.23,30.57302545]
[1734846741807,0.10139749,180.28,180.24,23.776884]
[1734846742015,0.10139749,180.28,180.24,54.34990945]
[1734846742232,0.10139749,180.28,180.24,23.776884]
[1734846743833,0.10139749,180.28,180.25,30.57302545]
[1734846744135,0.10139749,180.28,180.27,54.34990945]
[1734846744360,0.10139749,180.28,180.27,23.776884]
[1734846745139,0.10139749,180.28,180.23,23.776884]
[1734846745337,0.10139749,180.28,180.22,23.776884]
[1734846745548,0.10139749,180.28,180.21,23.776884]
[1734846745852,0.10139749,180.28,180.21,30.57302545]
[1734846746029,0.10139749,180.28,180.23,30.57302545]
[1734846746228,0.10139749,180.28,180.24,30.57302545]
[1734846746449,0.10139749,180.28,180.25,18.6287512]
[1734846746657,0.10139749,180.28,180.27,18.6287512]
[1734846747034,0.10139749,180.28,180.26,18.6287512]
[1734846747247,0.10139749,180.28,180.27,23.776884]
[1734846747756,0.10139749,180.28,180.27,42.4056352]
[1734846748626,0.10139749,180.28,180.27,42.5311252]
[1734846750362,0.10139749,180.28,180.27,61.1598764]
[1734846751161,0.10139749,180.28,180.27,42.5311252]
[1734846753155,0.10662511,180.29,180.28,0.12549]
[1734846753370,0.10662511,180.29,180.28,18.7542412]
[1734846753550,0.10662511,180.29,180.28,48.7542412]
[1734846754957,1.03939566,180.46,180.28,48.7542412]
[1734846755158,0.10268116,180.33,180.32,23.776884]
[1734846755375,0.10268116,180.33,180.32,72.4056352]
[1734846755873,0.12178785,180.34,180.33,0.12549]
[1734846756060,0.6962736,180.4,180.35,20.0]
[1734846756260,0.6962736,180.4,180.37,18.6287512]
[1734846758262,0.6962736,180.4,180.37,23.776884]
[1734846759056,0.6962736,180.4,180.35,18.6287512]
[1734846759677,0.6962736,180.4,180.36,42.4056352]
[1734846760379,0.6962736,180.4,180.36,23.776884]
[1734846760583,0.6962736,180.4,180.36,42.4056352]
[1734846760761,0.6962736,180.4,180.36,23.776884]
[1734846764579,0.6962736,180.4,180.37,18.6287512]
[1734846764784,0.6962736,180.4,180.37,42.4056352]
[1734846767387,0.6962736,180.4,180.37,23.776884]
[1734846767686,0.6962736,180.4,180.37,42.4056352]
[1734846770266,0.6962736,180.4,180.37,42.5311252]
[1734846770487,0.6962736,180.4,180.39,20.12549]
[1734846770688,7.7485,180.54,180.43,23.776884]
[1734846770889,7.7485,180.54,180.44,18.6287512]
[1734846771409,7.7485,180.54,180.45,42.4056352]
[1734846773378,1.0385992,180.53,180.45,23.776884]
[1734846773695,20.0,180.51,180.39,20.2657512]
[1734846774100,20.0,180.51,180.4,18.6287512]
[1734846774309,1.03887946,180.5,180.4,18.6287512]
[1734846774688,21.03890812,180.51,180.4,18.6287512]
[1734846775216,0.10892215,180.41,180.4,18.6287512]
[1734846775715,0.10892215,180.41,180.4,42.4056352]
[1734846777422,0.10892215,180.41,180.4,42.5311252]
[1734846780049,0.10892215,180.41,180.4,44.6383832]
[1734846781344,0.10892215,180.41,180.4,42.4056352]
[1734846781654,0.10892215,180.41,180.4,18.6287512]
[1734846783345,0.10892215,180.41,180.4,42.4056352]
[1734846784067,0.10892215,180.41,180.4,42.5311252]
[1734846789233,0.10892215,180.41,180.4,20.0]
[1734846789431,0.10892215,180.41,180.4,38.6287512]
[1734846790836,0.10892215,180.41,180.4,62.4056352]
[1734846791455,0.10892215,180.41,180.4,38.6287512]
[1734846792759,0.10892215,180.41,180.4,62.4056352]
[1734846794867,1.38658517,214.44,180.41,43.776884]
[1734846795052,37.2096503,180.71,180.42,18.6287512]
[1734846795245,0.11969809,180.43,180.42,42.4056352]
[1734846799169,0.11902559,180.47,180.42,42.4056352]
[1734846799170,0.6962736,180.58,180.46,20.0]
[1734846799473,0.6962736,180.58,180.47,42.4056352]
[1734846802069,0.6962736,180.58,180.51,20.0]
[1734846802370,0.6962736,180.58,180.53,18.6287512]
[1734846802665,0.6962736,180.58,180.54,18.6287512]
[1734846803256,0.6962736,180.58,180.51,20.0]
[1734846803754,0.6962736,180.58,180.54,18.6287512]
[1734846803939,0.6962736,180.58,180.57,18.6287512]
[1734846804140,0.6962736,180.58,180.57,42.4056352]
[1734846804541,7.9461,180.68,180.6,20.0]
[1734846804746,7.9461,180.68,180.58,23.776884]
[1734846804747,7.9461,180.68,180.64,18.6287512]
[1734846804947,1.03788794,180.74,180.65,23.776884]
[1734846804948,7.9461,180.72,180.65,23.776884]
[1734846805150,7.9461,180.72,180.65,42.4056352]
[1734846805354,7.9461,180.72,180.66,18.6287512]
[1734846805556,7.9461,180.72,180.67,23.776884]
[1734846805773,7.9461,180.72,180.67,42.4056352]
[1734846806664,0.6962736,180.76,180.69,18.6287512]
[1734846806844,0.6962736,180.76,180.7,23.776884]
[1734846807368,0.6962736,180.76,180.7,42.4056352]
[1734846807960,0.6962736,180.76,180.71,18.6287512]
[1734846808162,0.6962736,180.76,180.69,18.6287512]
[1734846808356,0.6962736,180.76,180.7,18.6287512]
[1734846808558,0.6962736,180.76,180.71,42.4056352]
[1734846808755,0.6962736,180.76,180.73,23.776884]
[1734846810677,0.6962736,180.76,180.73,42.4056352]
[1734846810851,0.6962736,180.76,180.75,18.6287512]
[1734846811170,0.6962736,180.76,180.75,42.4056352]
[1734846815176,0.80306018,180.76,180.75,42.4056352]
[1734846819365,0.80306018,180.76,180.75,23.776884]
[1734846819565,0.80306018,180.76,180.75,42.4056352]
[1734846820368,0.80306018,180.76,180.67,13.8366]
[1734846820683,0.80306018,180.76,180.69,18.6287512]
[1734846820882,0.80306018,180.76,180.7,18.6287512]
[1734846821097,0.80306018,180.76,180.74,18.6287512]
[1734846821283,0.80306018,180.76,180.75,18.6287512]
[1734846822175,0.80306018,180.76,180.75,32.4599512]
[1734846822370,0.80306018,180.76,180.75,34.0172512]
[1734846822565,0.80306018,180.76,180.75,57.7941352]
[1734846825895,0.10244818,180.78,180.75,57.7941352]
[1734846826094,0.10244818,180.78,180.77,18.6287512]
[1734846826282,0.10244818,180.78,180.77,42.4056352]
[1734846829195,0.09766521,180.8,180.78,56.3600252]
[1734846829373,0.09766521,180.8,180.79,18.6287512]
[1734846831206,0.09766521,180.8,180.79,42.4056352]
[1734846832878,0.09766521,180.8,180.79,18.6287512]
[1734846834201,0.09766521,180.8,180.79,42.4056352]
[1734846834907,9.3545557,180.93,180.8,23.776884]
[1734846835114,1.3818,180.92,180.8,23.776884]
[1734846835413,0.12042602,180.81,180.8,23.776884]
[1734846836713,0.12042602,180.81,180.78,23.776884]
[1734846836917,0.12042602,180.81,180.76,18.6287512]
[1734846837286,0.12042602,180.81,180.77,18.6287512]
[1734846837918,0.12042602,180.81,180.76,18.6287512]
[1734846838099,0.12042602,180.81,180.75,18.6287512]
[1734846839311,0.12042602,180.81,180.76,23.776884]
[1734846839600,0.12042602,180.81,180.71,18.6287512]
[1734846839841,0.12042602,180.81,180.69,18.6287512]
[1734846840512,0.12042602,180.81,180.7,18.6287512]
[1734846840684,0.12042602,180.81,180.73,18.6287512]
[1734846840886,0.12042602,180.81,180.72,18.6287512]
[1734846841399,0.12042602,180.81,180.73,23.776884]
[1734846841697,0.12042602,180.81,180.72,23.776884]
[1734846841900,0.12042602,180.81,180.69,18.6287512]
[1734846843311,0.12042602,180.81,180.7,23.776884]
[1734846843607,8.89537176,180.8,180.66,18.6287512]
[1734846843806,8.89537176,180.8,180.65,18.6287512]
[1734846844384,20.0,180.77,180.65,18.6287512]
[1734846844609,1.03750933,180.76,180.65,18.6287512]
[1734846844794,7.7443,180.75,180.61,18.6287512]
[1734846845107,1.03772196,180.74,180.62,18.6287512]
[1734846846006,7.7443,180.75,180.65,18.6287512]
[1734846846718,7.7443,180.75,180.66,23.776884]
[1734846847489,7.7443,180.75,180.59,13.8435]
[1734846847490,1.03749211,180.74,180.63,18.6287512]
[1734846847684,1.03749211,180.74,180.62,18.6287512]
[1734846847890,1.03749211,180.74,180.61,18.6287512]
[1734846848110,20.0,180.72,180.58,18.6287512]
[1734846848382,1.3832,180.73,180.54,18.6287512]
[1734846848383,20.0,180.68,180.54,18.6287512]
[1734846848588,7.7443,180.66,180.53,18.6287512]
[1734846848824,1.03819394,180.65,180.51,18.6287512]
[1734846848989,20.0,180.63,180.49,18.6287512]
[1734846849189,1.03834999,180.62,180.49,18.6287512]
[1734846849430,6.163,180.61,180.48,18.6287512]
[1734846849631,1.03846774,180.6,180.48,18.6287512]
[1734846850426,1.03846774,180.6,180.49,18.6287512]
[1734846850630,6.163,180.61,180.52,42.4056352]
[1734846850931,6.163,180.61,180.52,23.776884]
[1734846851231,1.03824969,180.6,180.51,23.776884]
[1734846851818,1.03824969,180.6,180.48,18.6287512]
[1734846852033,1.5813,180.59,180.45,18.6287512]
[1734846852193,21.03873405,180.58,180.43,18.6287512]
[1734846852388,21.03873405,180.58,180.44,18.6287512]
[1734846852611,21.03873405,180.58,180.46,18.6287512]
[1734846852802,21.03873405,180.58,180.45,18.6287512]
[1734846853517,21.03873405,180.58,180.46,23.776884]
[1734846854313,1.5813,180.59,180.5,18.6287512]
[1734846854520,1.5813,180.59,180.51,23.776884]
[1734846854707,6.163,180.61,180.55,23.776884]
[1734846855020,6.163,180.61,180.54,18.6287512]
[1734846855317,0.10237415,180.56,180.55,23.776884]
[1734846855613,7.415e-05,180.56,180.55,42.5311252]
[1734846855819,3.482e-05,180.58,180.56,0.12549]
[1734846856004,3.482e-05,180.58,180.54,18.6287512]
[1734846856005,3.482e-05,180.58,180.57,73.92631399]
[1734846857922,3.482e-05,180.58,180.57,43.776884]
[1734846858221,3.482e-05,180.58,180.57,73.92631399]
[1734846858396,3.482e-05,180.58,180.57,53.92631399]
[1734846861796,0.0286439,180.63,180.58,23.776884]
[1734846862026,0.0286439,180.63,180.61,30.14942999]
[1734846862202,0.0286439,180.63,180.58,53.92631399]
[1734846862416,0.0286439,180.63,180.62,30.14942999]
[1734846862806,0.0286439,180.63,180.62,23.776884]
[1734846863201,0.0286439,180.63,180.61,23.776884]
[1734846865229,0.0286439,180.63,180.62,30.14942999]
[1734846865408,0.07955212,180.65,180.64,20.0]
[1734846865612,0.07955212,180.65,180.64,73.92631399]
[1734846868337,0.07955212,180.65,180.64,53.92631399]
[1734846868810,0.07955212,180.65,180.64,30.14942999]
[1734846869502,0.07955212,180.65,180.62,30.14942999]
[1734846869706,0.07955212,180.65,180.61,30.14942999]
[1734846870732,0.07955212,180.65,180.57,30.14942999]
[1734846873039,0.07955212,180.65,180.6,30.14942999]
[1734846873234,0.07955212,180.65,180.61,30.14942999]
[1734846874027,0.07955212,180.65,180.62,30.14942999]
[1734846874229,0.07955212,180.65,180.63,30.14942999]
[1734846874427,0.07955212,180.65,180.55,23.776884]
[1734846874428,0.07955212,180.65,180.64,53.92631399]
[1734846874628,0.07955212,180.65,180.64,30.14942999]
[1734846874832,0.07955212,180.65,180.64,53.92631399]
[1734846875137,6.5576,180.71,180.58,20.0]
[1734846875334,0.10499271,180.65,180.62,30.14942999]
[1734846875635,0.10499271,180.65,180.63,30.14942999]
[1734846877142,0.10499271,180.65,180.64,53.92631399]
[1734846881953,0.11304509,180.66,180.65,37.615784]
[1734846882244,0.11304509,180.66,180.65,67.76521399]
[1734846883339,2.601e-05,180.67,180.65,67.89070399]
[1734846883540,2.601e-05,180.67,180.66,30.14942999]
[1734846883728,2.601e-05,180.67,180.66,53.92631399]
[1734846892131,0.1008349,180.69,180.67,37.614184]
[1734846892352,0.1008349,180.69,180.68,30.14942999]
[1734846892835,0.1008349,180.69,180.68,53.92631399]
[1734846894957,1.03716634,180.8,180.69,23.776884]
[1734846895160,1.03716634,180.8,180.72,30.14942999]
[1734846895358,1.03716634,180.8,180.65,2.213967]
[1734846895359,8.1755,180.72,180.65,2.213967]
[1734846895543,8.1755,180.72,180.6,30.14942999]
[1734846895544,1.03756356,180.71,180.6,30.14942999]
[1734846895748,1.03756356,180.71,180.59,30.14942999]
[1734846896143,1.03756356,180.71,180.6,18.5569973]
[1734846896672,1.03756356,180.71,180.61,18.5569973]
[1734846897671,1.03756356,180.71,180.62,42.3338813]
[1734846898061,1.03756356,180.71,180.62,53.92274894]
[1734846898262,1.03756356,180.71,180.62,23.776884]
[1734846898439,20.0,180.69,180.58,30.14586494]
[1734846898635,1.03774698,180.68,180.55,30.14586494]
[1734846898864,1.03774698,180.68,180.56,30.14586494]
[1734846899462,1.03774698,180.68,180.56,29.64586494]
[1734846900335,1.03774698,180.68,180.56,29.14586494]
[1734846900849,1.03774698,180.68,180.57,30.14586494]
[1734846901059,1.03774698,180.68,180.56,30.14586494]
[1734846901267,1.03774698,180.68,180.53,23.776884]
[1734846901469,1.03774698,180.68,180.56,30.14586494]
[1734846901763,1.03774698,180.68,180.57,30.14586494]
[1734846901966,1.03774698,180.68,180.58,30.14586494]
[1734846902344,1.03774698,180.68,180.57,30.14586494]
[1734846902552,1.03774698,180.68,180.56,30.14586494]
[1734846903079,2.42144698,180.68,180.55,30.14586494]
[1734846903287,8.1755,180.67,180.54,30.14586494]
[1734846903576,1.03827229,180.66,180.53,50.14586494]
[1734846904068,1.03827229,180.66,180.54,30.14586494]
[1734846904969,1.03827229,180.66,180.55,30.14586494]
[1734846906062,1.03827229,180.66,180.54,30.14586494]
[1734846909771,1.03827229,180.66,180.55,30.14586494]
[1734846910075,1.03827229,180.66,180.54,30.14586494]
[1734846910992,1.3838,180.65,180.5,13.8502]
[1734846911274,20.0,180.6,180.46,30.14586494]
[1734846911475,9.21419026,180.59,180.45,30.14586494]
[1734846911679,20.0,180.55,180.43,8.65896018]
[1734846911879,1.5296,180.53,180.43,8.65896018]
[1734846912063,1.03887875,180.52,180.43,8.65896018]
[1734846912471,1.5296,180.53,180.48,30.14586494]
[1734846912977,1.03855233,180.57,180.48,30.14586494]
[1734846913178,1.03855233,180.57,180.49,30.14586494]
[1734846913480,1.03855233,180.57,180.48,30.14586494]
[1734846913980,1.03855233,180.57,180.47,30.14586494]
[1734846914162,1.03855233,180.57,180.46,30.14586494]
[1734846914908,1.03855233,180.57,180.45,30.14586494]
[1734846915057,1.03855233,180.57,180.44,30.14586494]
[1734846915257,0.12137396,180.47,180.4,41.5741]
[1734846915463,0.12137396,180.47,180.46,30.14586494]
[1734846916284,0.12137396,180.47,180.46,53.92274894]
[1734846916485,7.396e-05,180.47,180.46,67.77614894]
[1734846918805,7.396e-05,180.47,180.38,29.2838]
[1734846918958,7.396e-05,180.47,180.4,30.14586494]
[1734846919164,7.396e-05,180.47,180.39,30.14586494]
[1734846919363,7.396e-05,180.47,180.38,30.14586494]
[1734846919587,1.03910924,180.47,180.38,30.14586494]
[1734846919973,7.396e-05,180.47,180.4,30.14586494]
[1734846920775,7.396e-05,180.47,180.41,23.776884]
[1734846922694,1.58137396,180.47,180.39,30.14586494]
[1734846922998,1.03898539,180.46,180.34,30.14586494]
[1734846923696,1.03898539,180.46,180.33,30.14586494]
[1734846923893,1.03898539,180.46,180.32,30.14586494]
[1734846924269,1.03898539,180.46,180.31,0.6962736]
[1734846924270,20.0,180.45,180.31,0.6962736]
[1734846924571,7.21712889,180.44,180.31,0.6962736]
[1734846924794,1.3855,180.43,180.31,0.6962736]
[1734846924977,1.03968506,180.42,180.31,0.6962736]
[1734846925506,20.0,180.41,180.31,0.6962736]
[1734846925711,1.03977583,180.4,180.31,0.6962736]
[1734846929568,1.5168,180.39,180.31,0.6962736]
[1734846929769,1.03981827,180.38,180.31,0.6962736]
[1734846934877,1.5168,180.39,180.32,23.776884]
[1734846935194,0.10917327,180.33,180.32,23.776884]
[1734846936724,0.10917327,180.33,180.32,20.0]
[1734846938477,0.10917327,180.33,180.32,73.92274894]
[1734846938675,0.10917327,180.33,180.32,87.78694894]
[1734846939786,0.11215727,180.34,180.32,87.91243894]
[1734846939987,0.00211177,180.35,180.34,0.12549]
[1734846940313,0.00211177,180.35,180.34,54.04823894]
[1734846941278,9.164e-05,180.36,180.34,54.04823894]
[1734846941480,9.615e-05,180.38,180.37,20.0]
[1734846941675,1.3847,180.54,180.39,20.0]
[1734846941676,2.974e-05,180.4,180.39,20.0]
[1734846941882,2.974e-05,180.4,180.39,87.78154894]
[1734846943805,6.6019,180.52,180.4,43.902374]
[1734846944016,6.6019,180.52,180.47,23.776884]
[1734846945411,6.6019,180.56,180.47,53.92274894]
[1734846946282,1.03854838,180.55,180.47,23.776884]
[1734846946487,6.6019,180.56,180.48,0.35461]
[1734846949403,6.6019,180.56,180.49,23.776884]
[1734846950716,6.6019,180.56,180.48,24.131494]
[1734846953418,6.6019,180.56,180.48,42.71156819]
[1734846953631,1.03849414,180.55,180.48,0.35461]
[1734846953788,6.6019,180.56,180.48,0.35461]
[1734846955219,0.1017521,180.49,180.48,42.71156819]
[1734846956505,5.21e-05,180.49,180.48,42.83705819]
[1734846956707,4.213e-05,180.52,180.49,0.12549]
[1734846956932,4.213e-05,180.52,180.51,62.35695819]
[1734846957999,4.213e-05,180.52,180.51,92.35695819]
[1734846958605,4.213e-05,180.52,180.51,62.35695819]
[1734846963028,4.213e-05,180.52,180.51,43.776884]
[1734846963339,4.213e-05,180.52,180.48,0.35461]
[1734846968525,4.213e-05,180.52,180.5,20.0]
[1734846968724,4.213e-05,180.52,180.49,30.19606586]
[1734846970233,4.213e-05,180.52,180.51,53.97294986]
[1734846973131,4.213e-05,180.52,180.51,23.776884]
[1734846973446,4.213e-05,180.52,180.5,20.0]
[1734846973805,4.213e-05,180.52,180.48,30.55067586]
[1734846974960,8.60482515,180.81,180.48,30.55067586]
[1734846975229,0.11949404,180.49,180.48,54.32755986]
[1734846978944,9.404e-05,180.49,180.48,54.45304986]
[1734846979239,3.14e-06,180.5,180.49,37.627984]
[1734846979440,6.77e-05,180.51,180.49,67.82404986]
[1734846979740,6.77e-05,180.51,180.5,53.97294986]
[1734846986043,6.77e-05,180.51,180.5,30.19606586]
[1734846987851,6.77e-05,180.51,180.5,53.97294986]
[1734846988017,6.77e-05,180.51,180.5,42.3456793]
[1734846989351,6.77e-05,180.51,180.5,23.776884]
[1734846990133,6.77e-05,180.51,180.49,18.5687953]